[Event "Fagernes GM Open Autumn 2024"]
[Site "Fagernes"]
[Date "2024.10.08"]
[Round "3.10"]
[White "Harish, Neeraj"]
[Black "Sorensen, Hampus"]
[Result "1-0"]
[ECO "B90"]
[WhiteElo "2024"]
[BlackElo "2423"]
[Annotator "TA"]
[PlyCount "99"]
[EventDate "2024.10.03"]
[EventType "swiss"]
[EventCountry "NOR"]
[SourceTitle "playchess.com"]
[Source "ChessBase"]
[SourceQuality "1"]
[TimeControl "40/6000:2400+30"]

{[%evp 20,99,11,13,24,21,31,22,37,37,40,33,46,45,27,39,61,22,21,16,34,31,29,31,39,9,31,20,32,33,73,59,497,476,756,736,695,698,631,605,600,603,511,466,454,456,461,452,756,752,708,728,728,725,723,710,739,855,915,1001,1001,799,1025,1025,4706,1018,11192,11192,29974,29975,29980,29977,29977,29978,29979,29980,29980,29981,29981,29982,29982,29982]} 1. e4 {[%emt 0:00:00]} c5 {[%emt 0:00:00]} 2. Nf3 {[%emt 0:00:00]} d6 {[%emt 0:00:00]} 3. d4 {[%emt 0:00:00]} cxd4 {[%emt 0:00:00]} 4. Nxd4 {[%emt 0:00:00]} Nf6 {[%emt 0:00:00]} 5. Nc3 {[%emt 0:00:00]} a6 {[%emt 0:00:00]} 6. Be3 {[%emt 0:00:00]} e5 {[%emt 0:00:00]} 7. Nb3 {[%emt 0:00:00]} Be7 {[%emt 0:00:00]} 8. f3 {[%emt 0:00:00]} Be6 {[%emt 0:00:00]} 9. Qd2 {[%emt 0:00:00]} h5 {[%emt 0:00:00]} 10. Nd5 {[%emt 0:00:00]} Nxd5 {[%emt 0:00:00]} 11. exd5 {[%emt 0:00:00]} Bf5 {[%emt 0:00:00]} 12. Be2 {[%emt 0:00:00]} a5 {[%emt 0:00:00]} 13. a4 {[%emt 0:00:00]} O-O {[%emt 0:00:00] Die Stellung ist ausgeglichen.} 14. O-O {[%emt 0:00:00]} Nd7 {[%emt 0:00:00]} 15. f4 {[%emt 0:00:01] Zielt auf fxe5 ab.} exf4 {[%emt 0:00:00]} 16. Bxf4 {[%emt 0:00:00]} (16. Bxh5 $2 fxe3 17. Qxe3 Bxc2 $19) 16... Rc8 {[%emt 0:00:00]} 17. c3 {[%emt 0:01:47]} (17. Nxa5 Rxc2 (17... Bxc2 18. Nc6 $14) 18. Qe3 Re8 $19 (18... Rxb2 19. Nc4 $15) (18... Qxa5 19. Qxe7 Nf6 20. Bf3 $17)) (17. Qxa5 Bxc2 18. Qxd8 Bxd8 $11) 17... Bg6 {[%emt 0:01:33]} 18. Nd4 {[%emt 0:06:06] Weiß steht aktiver.} Nb6 {[%emt 0:03:59]} 19. Nb5 {[%emt 0:06:22]} Rc5 {[%emt 0:19:30]} 20. Bf3 {[%emt 0:16:53]} Nc4 {[%emt 0:01:36]} 21. Qf2 {[%emt 0:02:04]} Rc8 {[%emt 0:08:43]} 22. Rae1 {[%emt 0:06:59]} (22. b3 $5 Ne5 $8 23. Be3 $11) 22... Bg5 {[%emt 0:07:29]} 23. Be4 {[%emt 0:02:03]} Bxf4 {[%emt 0:30:12]} 24. Qxf4 {[%emt 0:02:42]} Qb6+ {[%emt 0:01:53]} 25. Kh1 {[%emt 0:00:36][%cal Bg1h1,Bh1g2,Bg2f2][%mdl 32]} Nxb2 $2 {[%emt 0:01:51][%mdl 8192] Das Aus für Schwarz.} (25... Ne5 $1 $14) 26. Nxd6 $18 {[%emt 0:03:06] [#] Und jetzt Bxg6 wäre schön.} (26. Qxd6 Nxa4 27. Bxg6 fxg6 $15) 26... Bxe4 {[%emt 0:13:47]} (26... Nc4 $142) 27. Nxc8 {[%emt 0:02:06]} (27. Nxe4 Rce8 $16) 27... Bxg2+ {[%emt 0:00:00]} 28. Kxg2 {[%emt 0:00:00]} Qg6+ {[%emt 0:00:00]} 29. Qg3 {[%emt 0:00:00]} Rxc8 {[%emt 0:00:44]} 30. Qxg6 {[%emt 0:00:01]} fxg6 {[%emt 0:00:00][%mdl 4096] Endspiel. KRR-KRN} 31. Re7 {[%emt 0:01:27] [#] Schwarz muss nun d6 beachten.} Nc4 {[%emt 0:00:01]} 32. Rff7 {[%emt 0:00:28]} (32. Rxb7 Ne3+ 33. Kg1 Nxf1 34. Kxf1 Rxc3 $11) 32... Ne3+ {[%emt 0:00:07]} 33. Kf2 {[%emt 0:00:40]} (33. Rxe3 Kxf7 34. h4 (34. d6 Rd8 $17) 34... Rc4 $17) 33... Nxd5 {[%emt 0:03:58]} (33... Nf5 $142 34. Rc7 (34. Rxb7 Rxc3 35. d6 Nxd6 $18) 34... Re8) 34. Rxg7+ {[%emt 0:00:00]} Kh8 {[%emt 0:00:05]} 35. Rh7+ {[%emt 0:00:00]} Kg8 {[%emt 0:00:00]} 36. Reg7+ {[%emt 0:00:00]} Kf8 {[%emt 0:00:00]} 37. Rxb7 {[%emt 0:00:00]} Kg8 {[%emt 0:00:00] Verhindert Rh8+.} 38. Rbg7+ {[%emt 0:00:00]} Kf8 {[%emt 0:00:00]} 39. Rh8+ {[%emt 0:00:00]} Kxg7 {[%emt 0:00:00]} 40. Rxc8 {[%emt 0:00:00] KR-KN} Nb6 {[%emt 0:00:00]} 41. Rc7+ {[%emt 0:39:44]} Kh6 {[%emt 0:38:28]} 42. c4 {[%emt 0:00:17]} (42. h4 $142 Nxa4 43. Ke3) 42... Nxa4 {[%emt 0:00:14]} 43. h4 {[%emt 0:01:11] Beabsichtigt c5 und Matt.} Nb2 {[%emt 0:02:12]} 44. c5 {[%emt 0:00:23][%cal Bc4c5,Bc5c6][%mdl 32] Weiß setzt Matt.} a4 {[%emt 0:00:17]} 45. c6 {[%emt 0:00:09]} Nd3+ {[%emt 0:00:24]} 46. Kg3 {[%emt 0:00:25]} Nb4 {[%emt 0:00:56]} 47. Rc8 {[%emt 0:01:08]} Kg7 {[%emt 0:02:57]} 48. c7 {[%emt 0:00:07]} Nd5 {[%emt 0:00:09]} 49. Ra8 {[%emt 0:01:18]} Nxc7 {[%emt 0:00:06]} 50. Ra7 {[%emt 0:00:03] Gewichteter Fehlerwert: Weiß=0.07 (makellos) /Schwarz=0.52.  Verlustzug:     	---       	Schwarz=1     Fehler:       	---       	Schwarz=2     Ungenau:       	Weiß=2     	Schwarz=1     OK:         	Weiß=9     	Schwarz=5     Bester:       	Weiß=4     	Schwarz=2} ({Schlechter ist} 50. Rxa4 Ne6 $11) 1-0

[Event "Fagernes GM Open Autumn 2024"]
[Site "Fagernes"]
[Date "2024.10.08"]
[Round "3.11"]
[White "Willow, Jonah B"]
[Black "Myagmarsuren, Evsuld"]
[Result "1-0"]
[ECO "B48"]
[WhiteElo "2420"]
[BlackElo "2171"]
[Annotator "TA"]
[PlyCount "92"]
[EventDate "2024.10.03"]
[EventType "swiss"]
[EventCountry "NOR"]
[SourceTitle "playchess.com"]
[Source "ChessBase"]
[SourceQuality "1"]
[TimeControl "40/6000:2400+30"]

{[%evp 14,92,36,31,27,10,12,0,29,10,35,45,56,52,59,64,65,37,51,31,67,51,60,60,51,58,55,65,54,66,52,49,64,65,68,58,64,61,81,83,98,101,80,37,59,68,58,58,66,13,149,137,420,382,408,382,450,443,416,0,328,332,335,335,369,369,807,685,1925,1243,2710,2060,3183,2983,29979,29980,29985,29986,29993,29994,29994]} 1. e4 {[%emt 0:00:39]} c5 {[%emt 0:00:00]} 2. Nf3 {[%emt 0:00:00]} e6 {[%emt 0:00:00]} 3. d4 {[%emt 0:00:05]} cxd4 {[%emt 0:00:00]} 4. Nxd4 {[%emt 0:00:00]} Nc6 {[%emt 0:00:00]} 5. Nc3 {[%emt 0:00:00]} Qc7 {[%emt 0:00:00]} 6. Be3 {[%emt 0:01:33]} a6 {[%emt 0:00:00]} 7. a3 {[%emt 0:01:18]} b5 {[%emt 0:00:00]} 8. Nxc6 {[%emt 0:00:19]} Qxc6 {[%emt 0:00:00]} 9. h4 {[%emt 0:00:00]} Bb7 {[%emt 0:00:00]} 10. h5 {[%emt 0:06:16]} Nf6 {[%emt 0:01:32] The position is equal.} 11. f3 {[%emt 0:04:30]} h6 {[%emt 0:00:00]} 12. e5 {[%emt 0:12:40]} Nd5 {[%emt 0:00:00]} 13. Nxd5 {[%emt 0:00:00]} Qxd5 {[%emt 0:01:45]} 14. Qxd5 {[%emt 0:00:00]} Bxd5 {[%emt 0:00:00]} 15. Rh4 {[%emt 0:00:00]} Rc8 {[%emt 0:01:04]} 16. Kd2 {[%emt 0:02:41]} Bc5 {[%emt 0:01:23]} 17. Bxc5 {[%emt 0:02:10]} Rxc5 {[%emt 0:00:00]} 18. b4 $1 {[%emt 0:02:01]} Rc8 {[%emt 0:00:06]} 19. a4 {[%emt 0:03:27]} Rb8 {[%emt 0:01:38]} 20. axb5 {[%emt 0:15:54]} axb5 {[%emt 0:00:05]} 21. Ra5 {[%emt 0:00:31]} Bc6 {[%emt 0:00:31]} 22. Rd4 {[%emt 0:02:17]} Ke7 {[%emt 0:02:12]} 23. Rg4 {[%emt 0:09:56]} Rhg8 {[%emt 0:00:32]} 24. Bd3 {[%emt 0:00:00]} f5 {[%emt 0:00:39]} 25. Rg6 {[%emt 0:00:46]} Kf7 $1 {[%emt 0:00:55]} 26. Ke3 $36 {[%emt 0:05:20][%mdl 2048] White is really pushing. White is much more active.} Ra8 {[%emt 0:01:55] [#]} 27. Rxa8 {[%emt 0:12:04]} (27. Bxb5 $2 Rxa5 28. bxa5 Bxb5 $19) 27... Rxa8 $16 {[%emt 0:00:00][%mdl 4096] Endgame. KRB-KRB} 28. g4 {[%emt 0:00:00]} f4+ {[%emt 0:01:33]} 29. Kxf4 {[%emt 0:00:00] Strongly threatening Ke3.} Ra4 $1 {[%emt 0:00:00]} 30. Ke3 $1 {[%emt 0:01:10]} (30. c3 Ra3 $11) 30... Rxb4 {[%emt 0:00:00]} 31. f4 $1 {[%emt 0:00:00]} Rb1 {[%emt 0:00:28] Black is on the road to losing.} (31... Ra4 $1 $11) 32. f5 {[%emt 0:02:01]} Re1+ $2 {[%emt 0:04:26][%mdl 8192]} (32... exf5 $16 33. gxf5 Rh1) 33. Kf4 $18 {[%emt 0:04:38]} exf5 {[%emt 0:00:33]} 34. gxf5 {[%emt 0:00:00]} (34. Kxf5 Re3 35. g5 hxg5 $11) 34... Bd5 {[%emt 0:16:04]} 35. Rd6 {[%emt 0:01:28]} (35. Bxb5 Re4+ 36. Kg3 Rxe5 $11) 35... Bc6 {[%emt 0:00:23]} 36. Rg6 {[%emt 0:00:22]} Bd5 $1 {[%emt 0:00:00] [#]} 37. f6 $1 {[%emt 0:00:00]} (37. Bxb5 Re4+ 38. Kg3 Rxe5 $11) 37... gxf6 {[%emt 0:00:00]} 38. Rxf6+ {[%emt 0:00:33]} (38. Bxb5 Re4+ (38... fxe5+ $2 39. Kg4 $17) (38... Rxe5 39. Rxh6 Be4 40. Rh8 $11) 39. Kg3 Rxe5 (39... fxe5 40. Bxd7 Re3+ 41. Kh4 $11) 40. Bxd7 Be4 (40... Rxh5 41. Rg4 $15) 41. Rxh6 Kg7 $19 (41... Bxc2 42. Rh8 $11) (41... Bxc2 42. Rh8 $11)) 38... Ke7 {[%emt 0:00:00]} 39. Rxh6 {[%emt 0:00:00]} b4 $2 {[%emt 0:02:11]} (39... Be6 40. Bxb5 Rh1 41. Rh7+ Bf7) 40. Rh7+ {[%emt 0:00:39]} Kd8 {[%emt 0:00:03]} 41. h6 {[%emt 0:41:59]} b3 {[%emt 0:46:20]} 42. cxb3 {[%emt 0:01:21]} Rd1 {[%emt 0:00:12]} 43. Rh8+ {[%emt 0:00:00]} Ke7 {[%emt 0:00:00] [#]} 44. h7 $1 {[%emt 0:00:00] White mates.} Rxd3 {[%emt 0:00:00] [#]} (44... Rh1 45. Rb8) 45. Re8+ $3 {[%emt 0:00:00][%mdl 512]} Kf7 {[%emt 0:00:00]} (45... Kxe8 46. h8=Q+) 46. h8=Q {[%emt 0:00:00][%csl Ge8][%cal Rh8g8]} (46. h8=N+ $2 {loses.} Kxe8 47. Ng6 Rxb3 $19) 46... Rf3+ {[%emt 0:00:00] Weighted Error Value: White=0.16 (very precise) /Black=0.51.  Loses game:     	---       	Black=1      Mistake:       	---       	Black=2      Inaccurate:     	White=2     	Black=3      OK:         	White=12    	Black=7      Best:        	White=5     	Black=1      Strong:       	White=4     	Black=3} 1-0

[Event "Fagernes GM Open Autumn 2024"]
[Site "Fagernes"]
[Date "2024.10.08"]
[Round "3.12"]
[White "Amar, Elham"]
[Black "Nagare Akhilesh"]
[Result "1-0"]
[ECO "B27"]
[WhiteElo "2540"]
[BlackElo "2245"]
[Annotator "RC"]
[PlyCount "77"]
[EventDate "2024.10.03"]
[EventType "swiss"]
[EventCountry "NOR"]
[SourceTitle "playchess.com"]
[Source "ChessBase"]
[SourceQuality "1"]
[TimeControl "40/6000:2400+30"]

1. e4 {[%emt 0:05:44]} c5 {[%emt 0:00:00]} 2. Nf3 {[%emt 0:00:00]} g6 {[%emt 0:00:00]} 3. c3 {[%emt 0:00:00]} d5 {[%emt 0:00:00]} 4. e5 {[%emt 0:00:00]} Nc6 {[%emt 0:00:00]} 5. d4 {[%emt 0:01:27]} Bg4 {[%emt 0:00:00]} 6. Bb5 {[%emt 0:00:02]} Bg7 {[%emt 0:00:00]} 7. Nbd2 {[%emt 0:02:11]} Qb6 {[%emt 0:03:01]} 8. Bxc6+ {[%emt 0:02:28]} bxc6 {[%emt 0:05:53]} 9. O-O {[%emt 0:00:28]} Nh6 {[%emt 0:08:56]} 10. h3 {[%emt 0:00:16]} Bxf3 {[%emt 0:00:17]} 11. Nxf3 {[%emt 0:00:00]} O-O {[%emt 0:00:19]} 12. dxc5 {[%emt 0:10:24]} Qxc5 {[%emt 0:00:26]} 13. Be3 {[%emt 0:00:00]} Qc4 {[%emt 0:12:44]} 14. Qd2 {[%emt 0:02:21]} Nf5 {[%emt 0:00:00]} 15. b3 {[%emt 0:08:00]} Qb5 {[%emt 0:03:34]} 16. Bg5 {[%emt 0:03:41]} f6 {[%emt 0:08:30]} 17. Bf4 {[%emt 0:01:06]} fxe5 {[%emt 0:04:27]} 18. Bxe5 {[%emt 0:00:16]} Bf6 {[%emt 0:09:15]} 19. Rfe1 {[%emt 0:02:54]} Rfe8 {[%emt 0:01:36]} 20. Qf4 {[%emt 0:05:46]} Rf8 {[%emt 0:03:13]} 21. Bxf6 {[%emt 0:02:12]} exf6 {[%emt 0:02:45]} 22. g4 {[%emt 0:01:23]} Ng7 {[%emt 0:00:00]} 23. Re7 {[%emt 0:00:31]} Qb8 {[%emt 0:03:17]} 24. Qxb8 {[%emt 0:06:10]} Rfxb8 {[%emt 0:00:00]} 25. Rae1 {[%emt 0:00:23]} Re8 {[%emt 0:04:28]} 26. Rc7 {[%emt 0:00:28]} Rxe1+ {[%emt 0:00:00]} 27. Nxe1 {[%emt 0:00:00]} Re8 {[%emt 0:00:00]} 28. Kf1 {[%emt 0:00:00]} Ne6 {[%emt 0:10:58]} 29. Rxc6 {[%emt 0:00:00]} Ng5 {[%emt 0:00:00]} 30. h4 {[%emt 0:04:13]} Ne4 {[%emt 0:00:08]} 31. Nc2 {[%emt 0:01:23]} g5 {[%emt 0:05:19]} 32. h5 {[%emt 0:03:57]} Nd2+ {[%emt 0:06:54]} 33. Kg2 {[%emt 0:00:09]} Re4 {[%emt 0:00:00]} 34. Ne3 {[%emt 0:00:00]} Rf4 {[%emt 0:00:07]} 35. Rc8+ {[%emt 0:00:38]} Kf7 {[%emt 0:00:00]} 36. Rc7+ {[%emt 0:00:00]} Ke8 {[%emt 0:00:00]} 37. Rxh7 {[%emt 0:00:22]} Ne4 {[%emt 0:00:00]} 38. f3 {[%emt 0:00:01]} Nxc3 {[%emt 0:00:00]} 39. Rc7 {[%emt 0:00:48]} 1-0

[Event "Fagernes GM Open Autumn 2024"]
[Site "Fagernes"]
[Date "2024.10.08"]
[Round "3.13"]
[White "Carlsson, Ludvig"]
[Black "Skotheim, Andreas"]
[Result "1-0"]
[ECO "C47"]
[WhiteElo "2334"]
[BlackElo "2234"]
[Annotator "RC"]
[PlyCount "99"]
[EventDate "2024.10.03"]
[EventType "swiss"]
[EventCountry "NOR"]
[SourceTitle "playchess.com"]
[Source "ChessBase"]
[SourceQuality "1"]
[TimeControl "40/6000:2400+30"]

1. e4 {[%emt 0:00:00]} e5 {[%emt 0:00:00]} 2. Nf3 {[%emt 0:00:00]} Nc6 {[%emt 0:00:00]} 3. Nc3 {[%emt 0:00:00]} Nf6 {[%emt 0:00:00]} 4. d4 {[%emt 0:00:00]} exd4 {[%emt 0:00:00]} 5. Nxd4 {[%emt 0:00:00]} Bb4 {[%emt 0:00:00]} 6. Nxc6 {[%emt 0:00:00]} bxc6 {[%emt 0:00:00]} 7. Bd3 {[%emt 0:00:00]} O-O {[%emt 0:00:00]} 8. O-O {[%emt 0:00:00]} Re8 {[%emt 0:00:00]} 9. Re1 {[%emt 0:00:00]} d6 {[%emt 0:00:26]} 10. h3 {[%emt 0:00:00]} Nd7 {[%emt 0:05:16]} 11. Bd2 {[%emt 0:39:55]} Nc5 {[%emt 0:12:51]} 12. a3 {[%emt 0:01:53]} Bxc3 {[%emt 0:05:54]} 13. Bxc3 {[%emt 0:00:00]} Na4 {[%emt 0:07:30]} 14. Bd4 {[%emt 0:00:11]} c5 {[%emt 0:01:01]} 15. Bb5 {[%emt 0:00:00]} Bd7 {[%emt 0:00:24]} 16. Bxa4 {[%emt 0:06:37]} Bxa4 {[%emt 0:00:00]} 17. Bc3 {[%emt 0:00:00]} Qh4 {[%emt 0:10:00]} 18. Re3 {[%emt 0:05:22]} Re6 {[%emt 0:17:24]} 19. Rg3 {[%emt 0:00:40]} Rg6 {[%emt 0:00:49]} 20. Rxg6 {[%emt 0:00:46]} hxg6 {[%emt 0:00:00]} 21. Qd5 {[%emt 0:00:49]} Re8 {[%emt 0:01:33]} 22. b3 {[%emt 0:00:00]} Bd7 {[%emt 0:00:58]} 23. Re1 {[%emt 0:00:00]} Qd8 {[%emt 0:02:32]} 24. b4 {[%emt 0:06:32]} Be6 {[%emt 0:06:15]} 25. Qd3 {[%emt 0:01:44]} Qb8 {[%emt 0:11:53]} 26. bxc5 {[%emt 0:01:20]} dxc5 {[%emt 0:00:00]} 27. Rd1 {[%emt 0:00:00]} Qb7 {[%emt 0:00:10]} 28. Ba1 {[%emt 0:07:06]} Qc6 {[%emt 0:02:06]} 29. Qc3 {[%emt 0:05:26]} f6 {[%emt 0:00:00]} 30. f3 {[%emt 0:00:00]} Qb5 {[%emt 0:01:51]} 31. Kf2 {[%emt 0:00:53]} a5 {[%emt 0:01:32]} 32. g4 {[%emt 0:00:00]} c4 {[%emt 0:00:12]} 33. h4 {[%emt 0:02:02]} Qc5+ {[%emt 0:02:26]} 34. Qe3 {[%emt 0:00:08]} Qxe3+ {[%emt 0:00:53]} 35. Kxe3 {[%emt 0:00:00]} Rb8 {[%emt 0:00:00]} 36. Bc3 {[%emt 0:00:00]} a4 {[%emt 0:00:10]} 37. Rg1 {[%emt 0:00:20]} Kf7 {[%emt 0:00:59]} 38. Kd4 {[%emt 0:04:45]} Rh8 {[%emt 0:02:26]} 39. Rh1 {[%emt 0:00:00]} f5 {[%emt 0:00:33]} 40. h5 {[%emt 0:00:34]} Rd8+ {[%emt 0:01:08]} 41. Ke5 {[%emt 0:40:41]} gxh5 {[%emt 0:09:48]} 42. gxf5 {[%emt 0:00:00]} Bc8 {[%emt 0:00:26]} 43. Rxh5 {[%emt 0:00:00]} Rd1 {[%emt 0:00:47]} 44. Rg5 {[%emt 0:00:00]} Rd6 {[%emt 0:01:49]} 45. Kf4 {[%emt 0:00:00]} g6 {[%emt 0:00:24]} 46. Rxg6 {[%emt 0:00:00]} Rxg6 {[%emt 0:00:09]} 47. fxg6+ {[%emt 0:00:00]} Kxg6 {[%emt 0:00:08]} 48. Bd4 {[%emt 0:00:00]} Bh3 {[%emt 0:03:36]} 49. Ke5 {[%emt 0:00:00]} Kf7 {[%emt 0:01:23]} 50. c3 {[%emt 0:00:00]} 1-0

[Event "Fagernes GM Open Autumn 2024"]
[Site "Fagernes"]
[Date "2024.10.08"]
[Round "3.14"]
[White "Krivenko, Dion"]
[Black "Laddha, Shubh Jayesh"]
[Result "1-0"]
[ECO "C24"]
[WhiteElo "2244"]
[BlackElo "2308"]
[Annotator "RC"]
[PlyCount "117"]
[EventDate "2024.10.03"]
[EventType "swiss"]
[EventCountry "NOR"]
[SourceTitle "playchess.com"]
[Source "ChessBase"]
[SourceQuality "1"]
[TimeControl "40/6000:2400+30"]

1. e4 {[%emt 0:03:23]} e5 {[%emt 0:00:00]} 2. Bc4 {[%emt 0:00:00]} Nf6 {[%emt 0:00:00]} 3. d3 {[%emt 0:00:00]} c6 {[%emt 0:00:00]} 4. Nf3 {[%emt 0:00:00]} d5 {[%emt 0:00:00]} 5. Bb3 {[%emt 0:00:00]} Bb4+ {[%emt 0:00:00]} 6. Bd2 {[%emt 0:00:00]} Bxd2+ {[%emt 0:00:38]} 7. Qxd2 {[%emt 0:00:00]} Qd6 {[%emt 0:01:09]} 8. Qg5 {[%emt 0:00:00]} Nbd7 {[%emt 0:01:37]} 9. exd5 {[%emt 0:00:00]} cxd5 {[%emt 0:02:27]} 10. d4 {[%emt 0:00:30]} e4 {[%emt 0:11:44]} 11. Ne5 {[%emt 0:00:10]} O-O {[%emt 0:01:35]} 12. Nc3 {[%emt 0:00:02]} h6 {[%emt 0:07:16]} 13. Qg3 {[%emt 0:02:47]} Nb6 {[%emt 0:18:30]} 14. O-O-O {[%emt 0:04:36]} Be6 {[%emt 0:03:32]} 15. f3 {[%emt 0:02:22]} Rfc8 {[%emt 0:08:00]} 16. Ng4 {[%emt 0:11:54]} Qe7 {[%emt 0:13:17]} 17. Nxf6+ {[%emt 0:03:35]} Qxf6 {[%emt 0:00:00]} 18. fxe4 {[%emt 0:00:00]} Rd8 {[%emt 0:02:57]} 19. Rhf1 {[%emt 0:13:54]} Qe7 {[%emt 0:00:38]} 20. Rde1 {[%emt 0:06:25]} Qb4 {[%emt 0:05:18]} 21. Qf2 {[%emt 0:01:47]} dxe4 {[%emt 0:05:37]} 22. Rxe4 {[%emt 0:12:00]} Bxb3 {[%emt 0:00:56]} 23. axb3 {[%emt 0:00:00]} Qf8 {[%emt 0:00:00]} 24. Qf5 {[%emt 0:03:56]} Rac8 {[%emt 0:01:36]} 25. Ref4 {[%emt 0:03:53]} Rc7 {[%emt 0:01:31]} 26. Qa5 {[%emt 0:06:40]} Rdc8 {[%emt 0:04:29]} 27. Kb1 {[%emt 0:01:16]} Qd8 {[%emt 0:01:35]} 28. R1f2 {[%emt 0:04:58]} Qe8 {[%emt 0:01:31]} 29. Re4 {[%emt 0:01:47]} Qc6 {[%emt 0:01:11]} 30. Rfe2 {[%emt 0:00:00]} a6 {[%emt 0:01:49]} 31. Qf5 {[%emt 0:00:02]} g6 {[%emt 0:00:03]} 32. Qf4 {[%emt 0:00:54]} Kg7 {[%emt 0:00:07]} 33. Re7 {[%emt 0:00:48]} Qf6 {[%emt 0:00:13]} 34. Qxf6+ {[%emt 0:08:53]} Kxf6 {[%emt 0:00:00]} 35. Rxc7 {[%emt 0:02:38]} Rxc7 {[%emt 0:00:00]} 36. Ne4+ {[%emt 0:00:00]} Kg7 {[%emt 0:00:00]} 37. c4 {[%emt 0:00:00]} f5 {[%emt 0:00:00]} 38. Nc5 {[%emt 0:00:05]} Kf7 {[%emt 0:00:00]} 39. Kc2 {[%emt 0:00:04]} Nc8 {[%emt 0:00:06]} 40. Ne6 {[%emt 0:00:08]} Rd7 {[%emt 0:00:00]} 41. d5 {[%emt 0:02:34]} g5 {[%emt 0:10:02]} 42. Kd3 {[%emt 0:02:34]} b6 {[%emt 0:03:26]} 43. b4 {[%emt 0:02:06]} Ne7 {[%emt 0:03:18]} 44. b3 {[%emt 0:01:41]} f4 {[%emt 0:04:52]} 45. Nd4 {[%emt 0:03:45]} Ng6 {[%emt 0:02:16]} 46. Ra2 {[%emt 0:04:18]} Re7 {[%emt 0:01:23]} 47. Ne6 {[%emt 0:01:51]} Ne5+ {[%emt 0:02:50]} 48. Kd4 {[%emt 0:02:51]} Ng4 {[%emt 0:01:07]} 49. Rxa6 {[%emt 0:00:58]} Nxh2 {[%emt 0:00:47]} 50. Rxb6 {[%emt 0:01:10]} Nf1 {[%emt 0:01:02]} 51. Ra6 {[%emt 0:01:39]} Ne3 {[%emt 0:01:38]} 52. Ra2 {[%emt 0:00:49]} Kf6 {[%emt 0:01:02]} 53. b5 {[%emt 0:00:22]} h5 {[%emt 0:01:03]} 54. b6 {[%emt 0:01:36]} h4 {[%emt 0:00:34]} 55. c5 {[%emt 0:03:02]} Nxg2 {[%emt 0:01:45]} 56. Rxg2 {[%emt 0:00:21]} h3 {[%emt 0:00:11]} 57. Rh2 {[%emt 0:01:05]} f3 {[%emt 0:00:49]} 58. Ke4 {[%emt 0:00:45]} g4 {[%emt 0:00:10]} 59. Kf4 {[%emt 0:00:10]} 1-0

[Event "Fagernes GM Open Autumn 2024"]
[Site "Fagernes"]
[Date "2024.10.08"]
[Round "3.15"]
[White "Eliseev, Sergey"]
[Black "Sian, Shadi"]
[Result "1/2-1/2"]
[ECO "C42"]
[WhiteElo "2276"]
[BlackElo "2182"]
[Annotator "RC"]
[PlyCount "138"]
[EventDate "2024.10.03"]
[EventType "swiss"]
[EventCountry "NOR"]
[SourceTitle "playchess.com"]
[Source "ChessBase"]
[SourceQuality "1"]
[TimeControl "40/6000:2400+30"]

1. e4 {[%emt 0:05:41]} e5 {[%emt 0:00:53]} 2. Nf3 {[%emt 0:00:00]} Nf6 {[%emt 0:00:00]} 3. Nxe5 {[%emt 0:00:52]} d6 {[%emt 0:00:00]} 4. Nf3 {[%emt 0:00:00]} Nxe4 {[%emt 0:00:00]} 5. Nc3 {[%emt 0:00:29]} Nxc3 {[%emt 0:00:00]} 6. dxc3 {[%emt 0:00:00]} Be7 {[%emt 0:00:00]} 7. Be3 {[%emt 0:00:00]} O-O {[%emt 0:00:00]} 8. Qd2 {[%emt 0:00:00]} Nd7 {[%emt 0:00:00]} 9. O-O-O {[%emt 0:00:01]} Nf6 {[%emt 0:00:00]} 10. Bd3 {[%emt 0:01:29]} Re8 {[%emt 0:00:00]} 11. h4 {[%emt 0:01:59]} d5 {[%emt 0:00:00]} 12. Bg5 {[%emt 0:29:06]} c5 {[%emt 0:06:20]} 13. Rde1 {[%emt 0:20:28]} Bd7 {[%emt 0:38:34]} 14. Re5 {[%emt 0:10:12]} Be6 {[%emt 0:12:00]} 15. Rhe1 {[%emt 0:12:46]} Bd6 {[%emt 0:03:26]} 16. R5e2 {[%emt 0:00:00]} Qc7 {[%emt 0:01:22]} 17. g3 {[%emt 0:03:24]} Be7 {[%emt 0:17:21]} 18. Bxf6 {[%emt 0:03:02]} Bxf6 {[%emt 0:00:00]} 19. Ng5 {[%emt 0:02:51]} Bxg5 {[%emt 0:00:05]} 20. hxg5 {[%emt 0:00:00]} g6 {[%emt 0:02:06]} 21. c4 {[%emt 0:00:52]} Red8 {[%emt 0:01:13]} 22. cxd5 {[%emt 0:01:23]} Rxd5 {[%emt 0:00:00]} 23. Qe3 {[%emt 0:01:56]} Rd4 {[%emt 0:05:19]} 24. c3 {[%emt 0:00:21]} Rd6 {[%emt 0:00:52]} 25. a3 {[%emt 0:00:09]} Rad8 {[%emt 0:00:00]} 26. Qe5 {[%emt 0:01:30]} Qd7 {[%emt 0:03:18]} 27. Bc2 {[%emt 0:00:00]} Rd5 {[%emt 0:01:12]} 28. Qf6 {[%emt 0:00:00]} Rd6 {[%emt 0:03:02]} 29. f3 {[%emt 0:00:07]} Rd2 {[%emt 0:01:08]} 30. Qf4 {[%emt 0:00:13]} Rxe2 {[%emt 0:00:00]} 31. Rxe2 {[%emt 0:00:00]} Bf5 {[%emt 0:00:51]} 32. Rd2 {[%emt 0:00:00]} Qxd2+ {[%emt 0:00:00]} 33. Qxd2 {[%emt 0:00:00]} Rxd2 {[%emt 0:00:00]} 34. Kxd2 {[%emt 0:00:00]} Be6 {[%emt 0:00:05]} 35. Be4 {[%emt 0:00:00]} b6 {[%emt 0:00:00]} 36. Ke3 {[%emt 0:00:05]} f6 {[%emt 0:00:00]} 37. f4 {[%emt 0:00:00]} Kg7 {[%emt 0:00:00]} 38. Bf3 {[%emt 0:00:20]} h6 {[%emt 0:00:00]} 39. gxh6+ {[%emt 0:00:21]} Kxh6 {[%emt 0:00:00]} 40. Ke4 {[%emt 0:00:00]} Kg7 {[%emt 0:00:11]} 41. g4 {[%emt 0:02:49]} Kf7 {[%emt 0:01:58]} 42. Be2 {[%emt 0:03:38]} Ke7 {[%emt 0:01:12]} 43. g5 {[%emt 0:02:06]} fxg5 {[%emt 0:01:06]} 44. fxg5 {[%emt 0:00:03]} Kd6 {[%emt 0:00:13]} 45. Kf4 {[%emt 0:01:24]} Bf5 {[%emt 0:00:08]} 46. Bc4 {[%emt 0:01:38]} Bc2 {[%emt 0:00:11]} 47. Bf7 {[%emt 0:00:51]} a5 {[%emt 0:00:38]} 48. Bc4 {[%emt 0:00:55]} Bf5 {[%emt 0:00:39]} 49. Be2 {[%emt 0:02:08]} Kd5 {[%emt 0:00:46]} 50. Bb5 {[%emt 0:01:26]} Bc2 {[%emt 0:00:32]} 51. Be8 {[%emt 0:00:46]} Bf5 {[%emt 0:00:19]} 52. Bf7+ {[%emt 0:01:45]} Kd6 {[%emt 0:00:06]} 53. b4 {[%emt 0:00:30]} axb4 {[%emt 0:00:38]} 54. axb4 {[%emt 0:00:23]} cxb4 {[%emt 0:01:20]} 55. cxb4 {[%emt 0:00:04]} Bb1 {[%emt 0:00:09]} 56. Bc4 {[%emt 0:00:18]} Bf5 {[%emt 0:00:05]} 57. Bb3 {[%emt 0:01:55]} Bb1 {[%emt 0:00:07]} 58. Bf7 {[%emt 0:00:42]} Bf5 {[%emt 0:00:05]} 59. Ba2 {[%emt 0:00:03]} Bc2 {[%emt 0:00:04]} 60. Bc4 {[%emt 0:01:16]} Bb1 {[%emt 0:00:05]} 61. b5 {[%emt 0:00:24]} Kc5 {[%emt 0:00:20]} 62. Be2 {[%emt 0:00:08]} Kd4 {[%emt 0:00:10]} 63. Bg4 {[%emt 0:00:55]} Bd3 {[%emt 0:00:09]} 64. Bd7 {[%emt 0:00:02]} Bc2 {[%emt 0:00:22]} 65. Bc6 {[%emt 0:00:20]} Bd3 {[%emt 0:00:04]} 66. Bd7 {[%emt 0:00:05]} Bc2 {[%emt 0:00:13]} 67. Bc6 {[%emt 0:00:06]} Bd3 {[%emt 0:00:04]} 68. Bd7 {[%emt 0:00:04]} Bc2 {[%emt 0:00:05]} 69. Bc6 {[%emt 0:00:03]} Bd3 {[%emt 0:00:06]} 1/2-1/2